Workbook

Sheet Rocky Hill Budget
A1: PROPERTY: 38 Town Line Road Rocky Hill CT
A2: NOI Analysis
A3: YEAR ENDING DECEMBER 31, 2026
O5: 2026
C6: JAN | D6: FEB | E6: MARCH | F6: APRIL | G6: MAY | H6: JUNE | I6: JULY | J6: AUGUST | K6: SEPT | L6: OCT | M6: NOV | N6: DEC | O6: TOTAL
B7: INCOME:
B9: Base Rent | C9: ='Base Rents'!B15 -> 53017.34 | D9: ='Base Rents'!C15 -> 53017.34 | E9: ='Base Rents'!D15 -> 53864.34 | F9: ='Base Rents'!E15 -> 53864.34 | G9: ='Base Rents'!F15 -> 53864.34 | H9: ='Base Rents'!G15 -> 53864.34 | I9: ='Base Rents'!H15 -> 53864.34 | J9: ='Base Rents'!I15 -> 53864.34 | K9: ='Base Rents'!J15 -> 53864.34 | L9: ='Base Rents'!K15 -> 54162.67 | M9: ='Base Rents'!L15 -> 54162.67 | N9: ='Base Rents'!M15 -> 54162.67 | O9: =SUM(C9:N9) -> 645573.07
B10: CAM and Insurance Recovery | C10: =217905/12 -> 18158.75 | D10: =217905/12 -> 18158.75 | E10: 18158.75 | F10: 18158.75 | G10: 18158.75 | H10: 18158.75 | I10: 18158.75 | J10: 18158.75 | K10: 18158.75 | L10: 18158.75 | M10: 18158.75 | N10: 18158.75 | O10: =SUM(C10:N10) -> 217905
B11: Real Estate Tax Recovery | C11: =136227/12 -> 11352.25 | D11: =136227/12 -> 11352.25 | E11: 11352.25 | F11: 11352.25 | G11: 11352.25 | H11: 11352.25 | I11: 11352.25 | J11: 11352.25 | K11: 11352.25 | L11: 11352.25 | M11: 11352.25 | N11: 11352.25 | O11: =SUM(C11:N11) -> 136227
B12: TOTAL INCOME | C12: =SUM(C9:C11) -> 82528.34 | D12: 82528.34 | E12: 83375.34 | F12: 83375.34 | G12: 83375.34 | H12: 83375.34 | I12: 83375.34 | J12: 83375.34 | K12: 83375.34 | L12: 83673.67 | M12: =SUM(M9:M11) -> 83673.67 | N12: 83673.67 | O12: =SUM(C12:N12) -> 999705.07
B14: OPERATING EXPENSES:
B15: UTILTY EXPENSES:
B16: Electric Costs | C16: 200 | D16: 200 | E16: 200 | F16: 200 | G16: 200 | H16: 200 | I16: 200 | J16: 200 | K16: 200 | L16: 200 | M16: 200 | N16: 200 | O16: =SUM(C16:N16) -> 2400
B17: Water & Sewer Expense | C17: 2400 | D17: 2400 | E17: 2400 | F17: 2400 | G17: 2400 | H17: 2400 | I17: 2400 | J17: 2400 | K17: 2400 | L17: 2400 | M17: 2400 | N17: 2400 | O17: =SUM(C17:N17) -> 28800
B18: Vacant Electric and Gas | C18: 0 | D18: 0 | E18: 0 | F18: 0 | G18: 0 | H18: 0 | I18: 0 | J18: 0 | K18: 0 | L18: 0 | M18: 0 | N18: 0 | O18: =SUM(C18:N18) -> 0
B19: TOTAL UTILITY EXPENSES | C19: =SUM(C16:C17) -> 2600 | D19: 2600 | E19: 2600 | F19: 2600 | G19: 2600 | H19: 2600 | I19: 2600 | J19: 2600 | K19: 2600 | L19: 2600 | M19: 2600 | N19: 2600 | O19: =SUM(O16:O18) -> 31200
B21: BUILDING SERVICES:
B22: General Building Repairs | C22: 1000 | D22: 1000 | E22: 1000 | F22: 1000 | G22: 1000 | H22: 1000 | I22: 1000 | J22: 1000 | K22: 1000 | L22: 1000 | M22: 1000 | N22: 1000 | O22: =SUM(C22:N22) -> 12000
B23: Roof - R & M | C23: 0 | D23: 0 | E23: 0 | F23: 2000 | G23: 0 | H23: 0 | I23: 0 | J23: 0 | K23: 0 | L23: 2000 | M23: 0 | N23: 0 | O23: 4000
B24: Fire Alarm and Maint. | C24: 200 | D24: 0 | E24: 0 | F24: 200 | G24: 0 | H24: 0 | I24: 200 | J24: 0 | K24: 0 | L24: 200 | M24: 0 | N24: 0 | O24: 800
B25: Sweeping/Lot Clean Up | C25: 300 | D25: 300 | E25: 300 | F25: 300 | G25: 300 | H25: 300 | I25: 300 | J25: 300 | K25: 300 | L25: 300 | M25: 300 | N25: 300 | O25: 3600
B26: Landscaping | C26: 0 | D26: 0 | E26: 0 | F26: 3616 | G26: 3616 | H26: 7500 | I26: 3616 | J26: 3616 | K26: 3616 | L26: 3616 | M26: 3616 | N26: 0 | O26: =SUM(C26:N26) -> 32812
B27: Snow Removal | C27: 8538 | D27: 8538 | E27: 8538 | F27: 0 | G27: 0 | H27: 0 | I27: 0 | J27: 0 | K27: 0 | L27: 0 | M27: 8538 | N27: 8538 | O27: 42690
B28: TOTAL BUILDING SERVICES | C28: =SUM(C22:C27) -> 10038 | D28: 9838 | E28: 9838 | F28: 7116 | G28: 4916 | H28: 8800 | I28: 5116 | J28: 4916 | K28: 4916 | L28: 7116 | M28: 13454 | N28: 9838 | O28: =SUM(O22:O27) -> 95902
B30: ADMINISTRATIVE COSTS:
B31: Management Fees | C31: =C12*0.04*1.0635 -> 3510.755584 | D31: 3510.755584 | E31: 3546.786964 | F31: 3546.786964 | G31: 3546.786964 | H31: 3546.786964 | I31: 3546.786964 | J31: 3546.786964 | K31: 3546.786964 | L31: 3559.477922 | M31: 3559.477922 | N31: 3559.477922 | O31: =SUM(C31:N31) -> 42527.45368
B32: TOTAL ADMINISTRATIVE COSTS | C32: =SUM(C31:C31) -> 3510.755584 | D32: 3510.755584 | E32: 3546.786964 | F32: 3546.786964 | G32: 3546.786964 | H32: 3546.786964 | I32: 3546.786964 | J32: 3546.786964 | K32: 3546.786964 | L32: 3559.477922 | M32: 3559.477922 | N32: 3559.477922 | O32: 42527.45368
B34: TAXES/INSURANCE:
B35: Insurance Expense | C35: 2000 | D35: 2000 | E35: 2000 | F35: 2000 | G35: 2000 | H35: 2000 | I35: 2000 | J35: 2000 | K35: 2000 | L35: 2000 | M35: 2000 | N35: 2000 | O35: =SUM(C35:N35) -> 24000
B36: Real Estate Taxes | C36: 66452 | I36: =C36*1.05 -> 69774.6 | O36: =SUM(C36:N36) -> 136226.6
B37: TOTAL TAXES / INSURANCE | C37: =SUM(C35:C36) -> 68452 | D37: 2000 | E37: 2000 | F37: 2000 | G37: 2000 | H37: 2000 | I37: 71774.6 | J37: 2000 | K37: 2000 | L37: 2000 | M37: 2000 | N37: 2000 | O37: 160226.6
B39: TOTAL OPERATING EXPENSES | C39: =+C19+C28+C32+C37 -> 84600.75558 | D39: 17948.75558 | E39: 17984.78696 | F39: 15262.78696 | G39: 13062.78696 | H39: 16946.78696 | I39: 83037.38696 | J39: 13062.78696 | K39: 13062.78696 | L39: 15275.47792 | M39: 21613.47792 | N39: 17997.47792 | O39: 329856.0537
B41: NET OPERATING INCOME(LOSS) | C41: =+C12-C39 -> -2072.415584 | D41: 64579.58442 | E41: 65390.55304 | F41: 68112.55304 | G41: 70312.55304 | H41: 66428.55304 | I41: 337.9530364 | J41: 70312.55304 | K41: 70312.55304 | L41: 68398.19208 | M41: 62060.19208 | N41: 65676.19208 | O41: 669849.0163

Sheet Base Rents
A1: Base Rents DaBurr Rocky Hill LLC
B3: January | C3: February | D3: March | E3: April | F3: May | G3: June | H3: July | I3: August | J3: September | K3: October | L3: November | M3: December | N3: Annual Total
A4: Tenant
A5: Noah Nails | B5: 2000 | C5: 2000 | D5: 2000 | E5: 2000 | F5: 2000 | G5: 2000 | H5: 2000 | I5: 2000 | J5: 2000 | K5: 2000 | L5: 2000 | M5: 2000 | N5: =SUM(B5:M5) -> 24000
A6: Swan Vision | B6: 1760 | C6: 1760 | D6: 1760 | E6: 1760 | F6: 1760 | G6: 1760 | H6: 1760 | I6: 1760 | J6: 1760 | K6: 1760 | L6: 1760 | M6: 1760 | N6: =SUM(B6:M6) -> 21120
A7: Sola Salon | B7: 7466 | C7: 7466 | D7: 7466 | E7: 7466 | F7: 7466 | G7: 7466 | H7: 7466 | I7: 7466 | J7: 7466 | K7: 7466 | L7: 7466 | M7: 7466 | N7: 89592
A8: VK Spirits | B8: 5848 | C8: 5848 | D8: 5848 | E8: 5848 | F8: 5848 | G8: 5848 | H8: 5848 | I8: 5848 | J8: 5848 | K8: 5848 | L8: 5848 | M8: 5848 | N8: 70176
A9: Edible Arngmnts | B9: 2275 | C9: 2275 | D9: 2275 | E9: 2275 | F9: 2275 | G9: 2275 | H9: 2275 | I9: 2275 | J9: 2275 | K9: 2275 | L9: 2275 | M9: 2275 | N9: 27300
A10: WNT | B10: 16940 | C10: 16940 | D10: 17787 | E10: 17787 | F10: 17787 | G10: 17787 | H10: 17787 | I10: 17787 | J10: 17787 | K10: 17787 | L10: 17787 | M10: 17787 | N10: 211750
A11: Town Line Laundry | B11: 3325 | C11: 3325 | D11: 3325 | E11: 3325 | F11: 3325 | G11: 3325 | H11: 3325 | I11: 3325 | J11: 3325 | K11: 3325 | L11: 3325 | M11: 3325 | N11: 39900
A12: Town Fair Tire | B12: 10416.67 | C12: 10416.67 | D12: 10416.67 | E12: 10416.67 | F12: 10416.67 | G12: 10416.67 | H12: 10416.67 | I12: 10416.67 | J12: 10416.67 | K12: 10416.67 | L12: 10416.67 | M12: 10416.67 | N12: 125000.04
A13: Jersey Mikes | B13: 2986.67 | C13: 2986.67 | D13: 2986.67 | E13: 2986.67 | F13: 2986.67 | G13: 2986.67 | H13: 2986.67 | I13: 2986.67 | J13: 2986.67 | K13: 3285 | L13: 3285 | M13: 3285 | N13: =SUM(B13:M13) -> 36735.03
A15: TOTALS: | B15: =SUM(B5:B13) -> 53017.34 | C15: =SUM(C5:C13) -> 53017.34 | D15: 53864.34 | E15: 53864.34 | F15: 53864.34 | G15: 53864.34 | H15: 53864.34 | I15: 53864.34 | J15: 53864.34 | K15: 54162.67 | L15: 54162.67 | M15: 54162.67 | N15: =SUM(N5:N13) -> 645573.07

Sheet Operating Expenses
N5: 2026
B6: JAN | C6: FEB | D6: MARCH | E6: APRIL | F6: MAY | G6: JUNE | H6: JULY | I6: AUGUST | J6: SEPT | K6: OCT | L6: NOV | M6: DEC | N6: TOTAL
A7: OPERATING EXPENSES:
A8: UTILTY EXPENSES:
A9: Electric Costs | B9: ='Rocky Hill Budget'!C16 -> 200 | C9: ='Rocky Hill Budget'!D16 -> 200 | D9: ='Rocky Hill Budget'!E16 -> 200 | E9: ='Rocky Hill Budget'!F16 -> 200 | F9: ='Rocky Hill Budget'!G16 -> 200 | G9: ='Rocky Hill Budget'!H16 -> 200 | H9: ='Rocky Hill Budget'!I16 -> 200 | I9: ='Rocky Hill Budget'!J16 -> 200 | J9: ='Rocky Hill Budget'!K16 -> 200 | K9: ='Rocky Hill Budget'!L16 -> 200 | L9: ='Rocky Hill Budget'!M16 -> 200 | M9: ='Rocky Hill Budget'!N16 -> 200 | N9: =SUM(B9:M9) -> 2400
A10: Water & Sewer Expense | B10: 2600 | C10: 2600 | D10: 2600 | E10: 2600 | F10: 2600 | G10: 2600 | H10: 2600 | I10: 2600 | J10: 2600 | K10: 2600 | L10: 2600 | M10: 2600 | N10: =SUM(B10:M10) -> 31200
A11: TOTAL UTILITY EXPENSES | B11: =SUM(B9:B10) -> 2800 | C11: =SUM(C9:C10) -> 2800 | D11: =SUM(D9:D10) -> 2800 | E11: 2800 | F11: 2800 | G11: 2800 | H11: 2800 | I11: 2800 | J11: 2800 | K11: 2800 | L11: 2800 | M11: 2800 | N11: =SUM(N9:N10) -> 33600
A13: BUILDING SERVICES:
A14: General Building Repairs | B14: ='Rocky Hill Budget'!C22 -> 1000 | C14: ='Rocky Hill Budget'!D22 -> 1000 | D14: ='Rocky Hill Budget'!E22 -> 1000 | E14: ='Rocky Hill Budget'!F22 -> 1000 | F14: ='Rocky Hill Budget'!G22 -> 1000 | G14: ='Rocky Hill Budget'!H22 -> 1000 | H14: ='Rocky Hill Budget'!I22 -> 1000 | I14: ='Rocky Hill Budget'!J22 -> 1000 | J14: ='Rocky Hill Budget'!K22 -> 1000 | K14: ='Rocky Hill Budget'!L22 -> 1000 | L14: ='Rocky Hill Budget'!M22 -> 1000 | M14: ='Rocky Hill Budget'!N22 -> 1000 | N14: =SUM(B14:M14) -> 12000
A15: Roof - R & M | B15: 0 | C15: ='Rocky Hill Budget'!D23 -> 0 | D15: ='Rocky Hill Budget'!E23 -> 0 | E15: 3000 | F15: ='Rocky Hill Budget'!G23 -> 0 | G15: ='Rocky Hill Budget'!H23 -> 0 | H15: 0 | I15: ='Rocky Hill Budget'!J23 -> 0 | J15: ='Rocky Hill Budget'!K23 -> 0 | K15: 3000 | L15: ='Rocky Hill Budget'!M23 -> 0 | M15: ='Rocky Hill Budget'!N23 -> 0 | N15: =SUM(B15:M15) -> 6000
A16: Fire Alarm and Maint. | B16: ='Rocky Hill Budget'!C24 -> 200 | C16: ='Rocky Hill Budget'!D24 -> 0 | D16: ='Rocky Hill Budget'!E24 -> 0 | E16: ='Rocky Hill Budget'!F24 -> 200 | F16: ='Rocky Hill Budget'!G24 -> 0 | G16: ='Rocky Hill Budget'!H24 -> 0 | H16: ='Rocky Hill Budget'!I24 -> 200 | I16: ='Rocky Hill Budget'!J24 -> 0 | J16: ='Rocky Hill Budget'!K24 -> 0 | K16: ='Rocky Hill Budget'!L24 -> 200 | L16: ='Rocky Hill Budget'!M24 -> 0 | M16: ='Rocky Hill Budget'!N24 -> 0 | N16: 800
A17: Sweeping/Lot Clean Up | B17: 300 | C17: 300 | D17: 300 | E17: 300 | F17: 300 | G17: 300 | H17: 300 | I17: 300 | J17: 300 | K17: 300 | L17: 300 | M17: 300 | N17: 3600
A18: Landscaping | B18: ='Rocky Hill Budget'!C26 -> 0 | C18: ='Rocky Hill Budget'!D26 -> 0 | D18: ='Rocky Hill Budget'!E26 -> 0 | E18: 3616 | F18: 3616 | G18: 3616 | H18: 7500 | I18: 3616 | J18: 3616 | K18: 3616 | L18: 3616 | M18: ='Rocky Hill Budget'!N26 -> 0 | N18: 32812
A19: Snow Removal | B19: 8538 | C19: 8538 | D19: 8538 | E19: ='Rocky Hill Budget'!F27 -> 0 | F19: ='Rocky Hill Budget'!G27 -> 0 | G19: ='Rocky Hill Budget'!H27 -> 0 | H19: ='Rocky Hill Budget'!I27 -> 0 | I19: ='Rocky Hill Budget'!J27 -> 0 | J19: ='Rocky Hill Budget'!K27 -> 0 | K19: ='Rocky Hill Budget'!L27 -> 0 | L19: 8538 | M19: 8538 | N19: 42690
A20: TOTAL BUILDING SERVICES | B20: =SUM(B14:B19) -> 10038 | C20: =SUM(C14:C19) -> 9838 | D20: 9838 | E20: 8116 | F20: 4916 | G20: 4916 | H20: 9000 | I20: 4916 | J20: 4916 | K20: 8116 | L20: 13454 | M20: 9838 | N20: =SUM(N14:N19) -> 97902
A22: Management Fees | B22: ='Rocky Hill Budget'!C31 -> 3510.755584 | C22: ='Rocky Hill Budget'!D31 -> 3510.755584 | D22: ='Rocky Hill Budget'!E31 -> 3546.786964 | E22: ='Rocky Hill Budget'!F31 -> 3546.786964 | F22: ='Rocky Hill Budget'!G31 -> 3546.786964 | G22: ='Rocky Hill Budget'!H31 -> 3546.786964 | H22: ='Rocky Hill Budget'!I31 -> 3546.786964 | I22: ='Rocky Hill Budget'!J31 -> 3546.786964 | J22: ='Rocky Hill Budget'!K31 -> 3546.786964 | K22: ='Rocky Hill Budget'!L31 -> 3559.477922 | L22: ='Rocky Hill Budget'!M31 -> 3559.477922 | M22: ='Rocky Hill Budget'!N31 -> 3559.477922 | N22: =SUM(B22:M22) -> 42527.45368
P23: Utility, Services, Mngmnt Fees
A24: TAXES/INSURANCE: | P24: =N22+N20+N11 -> 174029.4537
A25: Insurance Expense | B25: 2000 | C25: 2000 | D25: 2000 | E25: 2000 | F25: 2000 | G25: 2000 | H25: 2000 | I25: 2000 | J25: 2000 | K25: 2000 | L25: 2000 | M25: 2000 | N25: =SUM(B25:M25) -> 24000
A26: Real Estate Taxes | B26: 66452 | H26: =B26*1.05 -> 69774.6 | N26: =SUM(B26:M26) -> 136226.6
A27: TOTAL TAXES / INSURANCE | B27: =SUM(B25:B26) -> 68452 | C27: 2000 | D27: 2000 | E27: 2000 | F27: 2000 | G27: 2000 | H27: 71774.6 | I27: 2000 | J27: 2000 | K27: 2000 | L27: 2000 | M27: 2000 | N27: 160226.6

Sheet CAMandRE Tax
A1: CAM, Insurance and RE Tax Reimbursements | J1: CAM | K1: ='Operating Expenses'!N11+'Operating Expenses'!N20 -> 131502 | M1: WNT Pays 50% of Base CAM
J2: Management | K2: ='Rocky Hill Budget'!O31 -> 42527.45368 | M2: WNT Pays 14.35% Management and Admin
J3: CAM and Mang | K3: =K1+K2 -> 174029.4537
J4: 15% Admin | K4: =K3*0.15 -> 26104.41805 | M4: WNT Shares
J5: TOTAL CAM | K5: =K3+K4 -> 200133.8717 | M5: Insurance(less prop cov) | N5: =N18 -> 6992
J6: Insurance | K6: =N17 -> 20875 | M6: CAM | N6: =K1*0.5 -> 65751
J7: RE Tax | K7: ='Rocky Hill Budget'!O36 -> 136226.6 | M7: Admin and Mang. | N7: =(K4+K2)*0.1435 -> 9848.673593
M8: TOTAL : | N8: =N5+N6+N7 -> 82591.67359
A9: Tenant | B9: SF Occupied | C9: % Share CAM | D9: % Share RE Tax | E9: Yearly Insurance | F9: Yearly CAM | G9: Yearly RE Tax
A10: Noah Nails | B10: 1500 | C10: =B10/J27 -> 0.04711795194 | D10: =C10 -> 0.04711795194 | E10: =C10*L13 -> 654.1385268 | F10: =C10*L14 -> 5867.796363 | G10: =D10*J23 -> 4652.28709
A11: Swan Vision | B11: 1200 | C11: =B11/J27 -> 0.03769436155 | D11: =C11 -> 0.03769436155 | E11: =D11*$L$13 -> 523.3108214 | F11: =D11*$L$14 -> 4694.23709 | G11: =D11*J23 -> 3721.829672 | M11: Insurance
A12: Vk Spirits | B12: 6380 | C12: =B12/J27 -> 0.2004083556 | D12: 0.2004083556 | E12: =D12*$L$13 -> 2782.269201 | F12: 24957.69386 | G12: =D12*J23 -> 19787.72776 | K12: Rest Of Tenants
A13: Edible Arngmnts | B13: 1820 | C13: =B13/J27 -> 0.05716978169 | D13: 0.05716978169 | E13: =D13*$L$13 -> 793.6880792 | F13: 7119.59292 | G13: =D13*J23 -> 5644.775003 | J13: Insurance Less WNT share | L13: =K6-N5 -> 13883 | M13: Property | N13: 6891
A14: Town Line Laundry | B14: 2100 | C14: =B14/J27 -> 0.06596513272 | D14: 0.06596513272 | E14: 915.7939375 | F14: 8214.914908 | G14: =D14*J23 -> 6513.201926 | J14: CAM/Admin less WNT | L14: =K5-N6-N7 -> 124534.1981 | M14: Liability | N14: 11002
A15: Town Fair Tire | B15: 10010 | C15: =B15/J27 -> 0.3144337993 | D15: 0.3144337993 | E15: =D15*$L$13 -> 4365.284435 | F15: 39157.76106 | G15: =D15*J23 -> 31046.26252 | M15: Umbrella | N15: 1285
A16: Sola Salon | B16: 6265 | C16: =B16/J27 -> 0.1967959793 | D16: 0.1967959793 | E16: =D16*$L$13 -> 2732.11858 | F16: 24507.82947 | G16: =D16*J23 -> 19431.05241 | M16: Flood | N16: 1697
A17: Jersey Mikes | B17: 2560 | C17: =B17/J27 -> 0.08041463798 | D17: 0.08041463798 | E17: =D17*$L$13 -> 1116.396419 | F17: =D17*$L$14 -> 10014.37246 | G17: =D17*J23 -> 7939.903301 | M17: TOTAL | N17: =SUM(N13:N16) -> 20875
M18: WNT Share | N18: =(N17-N13)/2 -> 6992
A19: WNT | B19: 5362 | C19: 0.5 | D19: 0.2752 | E19: =N5 -> 6992 | F19: =N6+N7 -> 75599.67359 | G19: =D19*K7 -> 37489.56032 | M19: Other Tenants | N19: =N17-N18 -> 13883
A21: Totals | E21: =SUM(E10:E19) -> 20875 | F21: =SUM(F10:F19) -> 200133.8717 | G21: =SUM(G10:G19) -> 136226.6 | K21: 0.2752
J22: Other Tenants | K22: WNT
D23: Total CAM+Ins. | E23: =E21+F21 -> 221008.8717 | I23: RE Tax | J23: =K7-K23 -> 98737.03968 | K23: =K7*K21 -> 37489.56032
B24: =SUM(B10:B19) -> 37197
E26: =E17/12 -> 93.03303492 | F26: =F17/12 -> 834.5310382 | G26: =G17/12 -> 661.6586084 | I26: Total SF in Center | J26: 37197
I27: Less WNT | J27: =J26-B19 -> 31835
